fUSD/lending_fUSD_20260522
["ID","MTS","AMOUNT","RATE_DAILY","PERIOD"]
[422803048,1779421833000,-781.60380507,0.00013699,2]
[422803053,1779421833000,-781.60380507,0.00013699,2]
[422803034,1779421833000,-322.96736959,0.00013699,2]
[422803036,1779421833000,-456.102025,0.00013699,2]
[422803035,1779421833000,-500.0,0.00013699,2]
[422803037,1779421833000,-1227.99243558,0.00013699,5]
[422803038,1779421833000,-479.52002356,0.00013699,2]
[422803042,1779421833000,-781.60380507,0.00013699,2]
[422803040,1779421833000,-781.60380507,0.00013699,2]
[422803039,1779421833000,-663.32667662,0.00013699,2]
[422803041,1779421833000,-781.60380507,0.00013699,2]
[422803033,1779421833000,-169.51036762,0.00013699,2]
[422803045,1779421833000,-781.60380507,0.00013699,2]
[422803051,1779421833000,-781.60380507,0.00013699,2]
[422803049,1779421833000,-781.60380507,0.00013699,2]
[422803047,1779421833000,-781.60380507,0.00013699,2]
[422803050,1779421833000,-781.60380507,0.00013699,2]
[422803043,1779421833000,-781.60380507,0.00013699,2]
[422803044,1779421833000,-781.60380507,0.00013699,2]
[422803046,1779421833000,-781.60380507,0.00013699,2]
[422803097,1779421834000,-776.81236411,0.00013699,2]
[422803111,1779421834000,-776.81236411,0.00013699,2]
[422803095,1779421834000,-776.81236411,0.00013699,2]
[422803098,1779421834000,-776.81236411,0.00013699,2]
[422803101,1779421834000,-776.81236411,0.00013699,2]
[422803103,1779421834000,-776.81236411,0.00013699,2]
[422803102,1779421834000,-776.81236411,0.00013699,2]
[422803107,1779421834000,-776.81236411,0.00013699,2]
[422803106,1779421834000,-776.81236411,0.00013699,2]
[422803108,1779421834000,-776.81236411,0.00013699,2]
[422803105,1779421834000,-776.81236411,0.00013699,2]
[422803109,1779421834000,-776.81236411,0.00013699,2]
[422803121,1779421834000,-776.81236414,0.00013699,2]
[422803110,1779421834000,-776.81236411,0.00013699,2]
[422803112,1779421834000,-776.81236411,0.00013699,2]
[422803113,1779421834000,-776.81236411,0.00013699,2]
[422803115,1779421834000,-776.81236411,0.00013699,2]
[422803120,1779421834000,-776.81236414,0.00013699,2]
[422803099,1779421834000,-776.81236411,0.00013699,2]
[422803104,1779421834000,-776.81236411,0.00013699,2]
[422803094,1779421834000,-776.81236411,0.00013699,2]
[422803074,1779421834000,-781.60380507,0.00013699,2]
[422803092,1779421834000,-776.81236411,0.00013699,2]
[422803119,1779421834000,-236.95997214,0.00013699,2]
[422803076,1779421834000,-781.60380507,0.00013699,2]
[422803077,1779421834000,-781.60380507,0.00013699,2]
[422803080,1779421834000,-781.60380507,0.00013699,2]
[422803081,1779421834000,-781.60380507,0.00013699,2]
[422803075,1779421834000,-781.60380507,0.00013699,2]
[422803079,1779421834000,-781.60380507,0.00013699,2]
[422803078,1779421834000,-781.60380507,0.00013699,2]
[422803082,1779421834000,-781.60380507,0.00013699,2]
[422803083,1779421834000,-781.60380507,0.00013699,2]
[422803085,1779421834000,-781.60380507,0.00013699,2]
[422803084,1779421834000,-781.60380507,0.00013699,2]
[422803087,1779421834000,-781.60380507,0.00013699,2]
[422803089,1779421834000,-781.60380507,0.00013699,2]
[422803090,1779421834000,-781.60380507,0.00013699,2]
[422803088,1779421834000,-781.60380507,0.00013699,2]
[422803091,1779421834000,-781.60380507,0.00013699,2]
[422803093,1779421834000,-776.81236411,0.00013699,2]
[422803100,1779421834000,-776.81236411,0.00013699,2]
[422803096,1779421834000,-776.81236411,0.00013699,2]
[422803117,1779421834000,-776.81236411,0.00013699,2]
[422803086,1779421834000,-781.60380507,0.00013699,2]
[422803114,1779421834000,-776.81236411,0.00013699,2]
[422803143,1779421834000,-500.0,0.00013699,2]
[422803146,1779421834000,-500.0,0.00013699,2]
[422803163,1779421834000,-500.0,0.00013699,2]
[422803148,1779421834000,-500.0,0.00013699,2]
[422803147,1779421834000,-500.0,0.00013699,2]
[422803153,1779421834000,-500.0,0.00013699,2]
[422803151,1779421834000,-167.40498201,0.00013699,2]
[422803154,1779421834000,-500.0,0.00013699,2]
[422803155,1779421834000,-500.0,0.00013699,2]
[422803152,1779421834000,-500.0,0.00013699,2]
[422803149,1779421834000,-500.0,0.00013699,2]
[422803156,1779421834000,-500.0,0.00013699,2]
[422803157,1779421834000,-500.0,0.00013699,2]
[422803158,1779421834000,-500.0,0.00013699,2]
[422803160,1779421834000,-641.01409866,0.00013699,2]
[422803159,1779421834000,-500.0,0.00013699,2]
[422803162,1779421834000,-500.0,0.00013699,2]
[422803161,1779421834000,-500.0,0.00013699,2]
[422803116,1779421834000,-776.81236411,0.00013699,2]
[422803140,1779421834000,-970.77,0.00013699,2]
[422803145,1779421834000,-500.0,0.00013699,2]
[422803150,1779421834000,-500.0,0.00013699,2]
[422803144,1779421834000,-500.0,0.00013699,2]
[422803118,1779421834000,-423.41725382,0.00013699,2]
[422803122,1779421834000,-776.81236414,0.00013699,2]
[422803142,1779421834000,-205.25819266,0.00013699,2]
[422803123,1779421834000,-613.88342704,0.00013699,2]
[422803128,1779421834000,-500.0,0.00013699,2]
[422803126,1779421834000,-500.0,0.00013699,2]
[422803127,1779421834000,-500.0,0.00013699,2]
[422803129,1779421834000,-500.0,0.00013699,2]
[422803125,1779421834000,-500.0,0.00013699,2]
[422803130,1779421834000,-500.0,0.00013699,2]
[422803124,1779421834000,-175.81974779,0.00013699,2]
[422803131,1779421834000,-595.48172659,0.00013699,2]
[422803132,1779421834000,-970.77,0.00013699,2]
[422803141,1779421834000,-970.77,0.00013699,2]
[422803139,1779421834000,-970.77,0.00013699,2]
[422803137,1779421834000,-970.77,0.00013699,2]
[422803138,1779421834000,-970.77,0.00013699,2]
[422803136,1779421834000,-970.77,0.00013699,2]
[422803133,1779421834000,-970.77,0.00013699,2]
[422803134,1779421834000,-970.77,0.00013699,2]
[422803135,1779421834000,-970.77,0.00013699,2]
[422803178,1779421835000,-500.0,0.00013699,2]
[422803173,1779421835000,-500.0,0.00013699,2]
[422803180,1779421835000,-309.46602611,0.00013699,2]
[422803177,1779421835000,-500.0,0.00013699,2]
[422803174,1779421835000,-500.0,0.00013699,2]
[422803175,1779421835000,-500.0,0.00013699,2]
[422803172,1779421835000,-500.0,0.00013699,2]
[422803168,1779421835000,-500.0,0.00013699,2]
[422803170,1779421835000,-150.0,0.00013699,2]
[422803167,1779421835000,-500.0,0.00013699,2]
[422803169,1779421835000,-289.60747108,0.00013699,2]
[422803166,1779421835000,-500.0,0.00013699,2]
[422803165,1779421835000,-500.0,0.00013699,2]
[422803164,1779421835000,-500.0,0.00013699,2]
[422803181,1779421835000,-323.0,0.000137,5]
[422803171,1779421835000,-309.88449683,0.00013699,2]
[422803187,1779421835000,-2716.78895376,0.000137,2]
[422803176,1779421835000,-500.0,0.00013699,2]
[422803186,1779421835000,-247539.34044987,0.000137,2]
[422803196,1779421835000,-914.31806116,0.000137,2]
[422803198,1779421835000,-681.95957525,0.000137,2]
[422803197,1779421835000,-970.44892758,0.000137,2]
[422803193,1779421835000,-723.91269507,0.000137,2]
[422803191,1779421835000,-812.216687,0.000137,2]
[422803192,1779421835000,-770.02662137,0.000137,2]
[422803190,1779421835000,-5128.06623055,0.000137,2]
[422803195,1779421835000,-816.39367816,0.000137,2]
[422803189,1779421835000,-13133.7011578,0.000137,2]
[422803194,1779421835000,-2277.63330726,0.000137,2]
[422803182,1779421835000,-319.0,0.000137,5]
[422803179,1779421835000,-500.0,0.00013699,2]
[422803184,1779421835000,-151.56096587,0.000137,2]
[422803199,1779421835000,-569.13169042,0.000137,2]
[422803183,1779421835000,-308.0,0.000137,5]
[422803185,1779421835000,-203.81082546,0.000137,2]
[422803188,1779421835000,-22931.13943806,0.000137,2]
[422803200,1779421836000,-212.97218855,0.000137,2]
[422803279,1779421843000,-328.214072,0.000137,2]
[422803280,1779421843000,-634.28,0.000137,2]
[422803282,1779421843000,-253.55063593,0.000137,2]
[422803285,1779421843000,-4175.02003892,0.000137,2]
[422803281,1779421843000,-717.72,0.000137,2]
[422803292,1779421846000,-18538.00014156,0.000137,2]
[422803291,1779421846000,-500.0,0.00013488,2]
[422803293,1779421846000,-354.70923108,0.000137,2]
[422803294,1779421847000,-256.84210766,0.000137,2]
[422803299,1779421994000,150.0,0.00015,120]
[422803302,1779422183000,150.0,0.00015,120]
[422803308,1779422371000,150.0,0.00015,120]
[422803313,1779422543000,170.83,6.517e-05,2]
[422803314,1779422558000,150.0,0.00015,120]
[422803315,1779422745000,206.49,0.00015,120]
[422803320,1779422952000,-170.83,8.604e-05,2]
[422803321,1779422952000,-250.0,9.465e-05,2]
[422803322,1779422952000,-283.67276122,9.648e-05,2]
[422803325,1779422957000,-223.46522462,0.00011781,2]
[422803324,1779422957000,-170.83,0.00010692,2]
[422803323,1779422957000,-37.52787639,9.648e-05,2]
[422803344,1779423032000,-176.6,0.00012822,2]
[422803343,1779423032000,-165.18,0.00012797,2]
[422803346,1779423032000,-150.0,0.00012842,2]
[422803347,1779423032000,-150.0,0.00013014,2]
[422803345,1779423032000,-698.03,0.00012835,2]
[422803349,1779423032000,-150.0,0.00013356,2]
[422803350,1779423032000,-1643.504,0.00013403,2]
[422803355,1779423032000,-246.50449,0.0001356,2]
[422803352,1779423032000,-255.0,0.00013525,2]
[422803351,1779423032000,-153.059,0.00013403,2]
[422803353,1779423032000,-150.0,0.00013527,2]
[422803354,1779423032000,-246.50448,0.0001356,2]
[422803356,1779423032000,-246.50449,0.0001358,2]
[422803348,1779423032000,-150.0,0.00013185,2]
[422803341,1779423032000,-8217.26,0.00012779,2]
[422803339,1779423032000,-1792.67,0.00012777,2]
[422803340,1779423032000,-299.99,0.00012777,2]
[422803337,1779423032000,-500.0,0.00012712,2]
[422803338,1779423032000,-825.06,0.00012757,2]
[422803334,1779423032000,-163.46,0.00012432,2]
[422803336,1779423032000,-150.0,0.00012671,2]
[422803335,1779423032000,-150.0,0.000125,2]
[422803329,1779423032000,-24105.53477538,0.00012127,2]
[422803331,1779423032000,-150.0,0.00012431,2]
[422803330,1779423032000,-150.0,0.00012329,2]
[422803333,1779423032000,-300.0,0.00012431,2]
[422803327,1779423032000,-276.53477538,0.00011781,2]
[422803332,1779423032000,-1200.0,0.00012431,2]
[422803358,1779423032000,-1294.392862,0.000136,7]
[422803328,1779423032000,-2723.46522462,0.00012127,2]
[422803342,1779423032000,-170.83,0.00012779,2]
[422803357,1779423032000,-1238.085,0.00013593,2]
[422803395,1779423032000,-500.0,0.00013699,2]
[422803360,1779423032000,-19459.05871533,0.000136,2]
[422803359,1779423032000,-10376.33570678,0.000136,2]
[422803389,1779423032000,-1078.42257207,0.00013699,2]
[422803393,1779423032000,-500.0,0.00013699,2]
[422803391,1779423032000,-1078.42257207,0.00013699,2]
[422803400,1779423032000,-500.0,0.00013699,2]
[422803399,1779423032000,-500.0,0.00013699,2]
[422803398,1779423032000,-277.22516057,0.00013699,2]
[422803386,1779423032000,-1078.42257207,0.00013699,2]
[422803384,1779423032000,-1078.42257207,0.00013699,2]
[422803383,1779423032000,-1078.42257207,0.00013699,2]
[422803382,1779423032000,-666.0,0.00013699,2]
[422803381,1779423032000,-300.0,0.00013699,2]
[422803378,1779423032000,-168.26,0.00013699,2]
[422803376,1779423032000,-230.50327238,0.00013699,2]
[422803380,1779423032000,-300.0,0.00013699,2]
[422803385,1779423032000,-1078.42257207,0.00013699,2]
[422803379,1779423032000,-300.0,0.00013699,2]
[422803364,1779423032000,-264.3718435,0.000136,2]
[422803377,1779423032000,-1000.0,0.00013699,2]
[422803361,1779423032000,-6857.02677441,0.000136,2]
[422803366,1779423032000,-420.0,0.00013641,2]
[422803362,1779423032000,-168.38910044,0.000136,2]
[422803365,1779423032000,-440.7042087,0.000136,2]
[422803368,1779423032000,-1680.0,0.00013674,2]
[422803367,1779423032000,-6081.0,0.00013671,2]
[422803369,1779423032000,-731.91124824,0.0001369,2]
[422803371,1779423032000,-151.0,0.00013697,2]
[422803372,1779423032000,-500.0,0.00013698,2]
[422803374,1779423032000,-1070.54,0.00013698,2]
[422803373,1779423032000,-421.7338956,0.00013698,2]
[422803375,1779423032000,-4721.46,0.00013698,2]
[422803429,1779423033000,-250.0,0.00013699,2]
[422803421,1779423033000,-500.0,0.00013699,2]
[422803424,1779423033000,-245.87301009,0.00013699,2]
[422803423,1779423033000,-500.0,0.00013699,2]
[422803427,1779423033000,-500.0,0.00013699,2]
[422803428,1779423033000,-500.0,0.00013699,2]
[422803422,1779423033000,-500.0,0.00013699,2]
[422803431,1779423033000,-495.31500908,0.00013699,2]
[422803436,1779423033000,-1070.54,0.00013699,2]
[422803438,1779423033000,-1070.54,0.00013699,2]
[422803439,1779423033000,-1070.54,0.00013699,2]
[422803437,1779423033000,-1070.54,0.00013699,2]
[422803434,1779423033000,-500.0,0.00013699,2]
[422803435,1779423033000,-501.85766968,0.00013699,2]
[422803433,1779423033000,-172.05600274,0.00013699,2]
[422803425,1779423033000,-500.0,0.00013699,2]
[422803432,1779423033000,-163.71697531,0.00013699,2]
[422803426,1779423033000,-500.0,0.00013699,2]
[422803406,1779423033000,-500.0,0.00013699,2]
[422803417,1779423033000,-500.0,0.00013699,2]
[422803401,1779423033000,-500.0,0.00013699,2]
[422803403,1779423033000,-500.0,0.00013699,2]
[422803402,1779423033000,-500.0,0.00013699,2]
[422803404,1779423033000,-500.0,0.00013699,2]
[422803405,1779423033000,-500.0,0.00013699,2]
[422803407,1779423033000,-500.0,0.00013699,2]
[422803408,1779423033000,-500.0,0.00013699,2]
[422803412,1779423033000,-500.0,0.00013699,2]
[422803413,1779423033000,-166.54698015,0.00013699,2]
[422803410,1779423033000,-500.0,0.00013699,2]
[422803411,1779423033000,-500.0,0.00013699,2]
[422803409,1779423033000,-500.0,0.00013699,2]
[422803414,1779423033000,-500.0,0.00013699,2]
[422803416,1779423033000,-500.0,0.00013699,2]
[422803415,1779423033000,-500.0,0.00013699,2]
[422803418,1779423033000,-500.0,0.00013699,2]
[422803419,1779423033000,-500.0,0.00013699,2]
[422803420,1779423033000,-500.0,0.00013699,2]
[422803440,1779423033000,-1070.54,0.00013699,2]
[422803430,1779423033000,-500.0,0.00013699,2]
[422803442,1779423033000,-1070.54,0.00013699,2]
[422803469,1779423033000,-241.0,0.000137,5]
[422803470,1779423033000,-150.0,0.000137,5]
[422803465,1779423033000,-500.0,0.00013699,2]
[422803467,1779423033000,-500.0,0.00013699,2]
[422803468,1779423033000,-500.0,0.00013699,2]
[422803472,1779423033000,-153072.95756114,0.000137,2]
[422803471,1779423033000,-163.04866037,0.000137,2]
[422803474,1779423033000,-9242.62335866,0.000137,2]
[422803473,1779423033000,-71423.1507715,0.000137,2]
[422803476,1779423033000,-6102.4390165,0.000137,2]
[422803475,1779423033000,-6376.3223995,0.000137,2]
[422803478,1779423033000,-136814.14972718,0.000137,2]
[422803479,1779423033000,-4211.59187353,0.000137,2]
[422803477,1779423033000,-684.4153371,0.000137,2]
[422803480,1779423033000,-2617.66149264,0.000137,2]
[422803481,1779423033000,-4438.00906479,0.000137,2]
[422803441,1779423033000,-1070.54,0.00013699,2]
[422803466,1779423033000,-500.0,0.00013699,2]
[422803463,1779423033000,-500.0,0.00013699,2]
[422803464,1779423033000,-500.0,0.00013699,2]
[422803462,1779423033000,-500.0,0.00013699,2]
[422803443,1779423033000,-4721.46,0.00013699,2]
[422803444,1779423033000,-4721.46,0.00013699,2]
[422803447,1779423033000,-4721.46,0.00013699,2]
[422803445,1779423033000,-4721.46,0.00013699,2]
[422803449,1779423033000,-4721.46,0.00013699,2]
[422803448,1779423033000,-4721.46,0.00013699,2]
[422803446,1779423033000,-4721.46,0.00013699,2]
[422803452,1779423033000,-500.0,0.00013699,2]
[422803461,1779423033000,-500.0,0.00013699,2]
[422803450,1779423033000,-509.11252788,0.00013699,2]
[422803453,1779423033000,-500.0,0.00013699,2]
[422803458,1779423033000,-500.0,0.00013699,2]
[422803455,1779423033000,-504.06953205,0.00013699,2]
[422803460,1779423033000,-500.0,0.00013699,2]
[422803454,1779423033000,-504.9957341,0.00013699,2]
[422803456,1779423033000,-500.0,0.00013699,2]
[422803457,1779423033000,-500.0,0.00013699,2]
[422803459,1779423033000,-500.0,0.00013699,2]
[422803451,1779423033000,-500.0,0.00013699,2]
[422803485,1779423038000,-308.5174995,0.000136,2]
[422803484,1779423038000,-5091.90804701,0.000137,2]
[422803583,1779423040000,-181.51002861,0.000136,2]
[422803582,1779423040000,-299.02268894,0.000136,2]
[422803586,1779423040000,-2410.0,0.000137,2]
[422803585,1779423040000,-519.56113632,0.000137,2]
[422803584,1779423040000,-4706.43678292,0.000137,2]
[422803588,1779423041000,-350.33533698,0.000137,2]
[422803587,1779423041000,-334.08,0.000137,2]
[422803594,1779423043000,-639.42,0.000137,2]
[422803595,1779423044000,-9167.64423464,0.000137,2]
[422803598,1779423044000,-1324.41,0.000137,2]
[422803596,1779423044000,-1208.68179918,0.000137,2]
[422803600,1779423044000,-106893.05171227,0.000137,2]
[422803602,1779423044000,-89242.3137096,0.000137,2]
[422803601,1779423044000,-19687.0266707,0.000137,2]
[422803597,1779423044000,-16008.50524382,0.000137,2]
[422803599,1779423044000,-1253.48224332,0.000137,2]
[422803609,1779423046000,-319.71,0.000137,2]
[422803608,1779423046000,-903.35986595,0.000137,2]
[422803607,1779423046000,-23668.55786173,0.000137,2]
[422803610,1779423047000,-649.2,0.000137,2]
[422803613,1779423047000,-256.39140622,0.000137,2]
[422803611,1779423047000,-9570.9819259,0.000137,2]
[422803612,1779423047000,-571.82945458,0.000137,2]
[422803617,1779423676000,-645.78955773,0.000114,2]
[422803620,1779423703000,272.29,6.843e-05,2]
[422803619,1779423703000,272.29,6.529e-05,2]
[422803618,1779423703000,272.29,6.214e-05,2]
[422803621,1779423703000,272.29,7.157e-05,2]
[422803625,1779423704000,272.29,8.414e-05,2]
[422803624,1779423704000,272.29,8.1e-05,2]
[422803623,1779423704000,272.29,7.786e-05,2]
[422803622,1779423704000,272.29,7.471e-05,2]
[422803626,1779423705000,272.29,8.728e-05,2]
[422803627,1779423705000,272.29,9.043e-05,2]
[422803629,1779423705000,272.29,9.671e-05,2]
[422803630,1779423705000,272.29,9.985e-05,2]
[422803628,1779423705000,272.29,9.357e-05,2]
[422803631,1779423706000,258.84093529,0.000103,2]
[422803634,1779423944000,171.13,8.99e-05,2]
[422803636,1779423946000,-250.0,0.00010457,2]
[422803637,1779423946000,-272.29,0.00010614,2]
[422803639,1779423946000,-1200.0,0.00010699,2]
[422803635,1779423946000,-13.44906471,0.000103,2]
[422803640,1779423946000,-300.0,0.00010699,2]
[422803642,1779423946000,-12.11171275,0.00010699,2]
[422803638,1779423946000,-256.15278345,0.00010667,2]
[422803641,1779423946000,-300.0,0.00010699,2]
[422803643,1779423952000,-200.0,0.00010699,2]
[422803645,1779423953000,-200.0,0.00010699,2]
[422803644,1779423953000,-200.0,0.00010699,2]
[422803646,1779423953000,-200.0,0.00010699,2]
[422803649,1779423954000,-12.11171275,0.000107,2]
[422803648,1779423954000,-187.88828725,0.00010699,2]
[422803647,1779423954000,-200.0,0.00010699,2]
[422803650,1779423955000,-200.0,0.000107,2]
[422803652,1779423955000,-200.0,0.000107,2]
[422803651,1779423955000,-200.0,0.000107,2]
[422803654,1779423956000,-200.0,0.000107,2]
[422803653,1779423956000,-200.0,0.000107,2]
[422803655,1779423956000,-200.0,0.000107,2]
[422803658,1779423957000,-200.0,0.000107,2]
[422803657,1779423957000,-200.0,0.000107,2]
[422803656,1779423957000,-200.0,0.000107,2]
[422803659,1779423958000,-200.0,0.000107,2]
[422803661,1779423958000,-200.0,0.000107,2]
[422803660,1779423958000,-200.0,0.000107,2]
[422803662,1779423959000,-200.0,0.000107,2]
[422803664,1779423959000,-200.0,0.000107,2]
[422803663,1779423959000,-200.0,0.000107,2]
[422803667,1779423960000,-200.0,0.000107,2]
[422803666,1779423960000,-200.0,0.000107,2]
[422803665,1779423960000,-200.0,0.000107,2]
[422803671,1779423961000,-200.0,0.000107,2]
[422803669,1779423961000,-100.0,0.00010699,2]
[422803670,1779423961000,-100.0,0.000107,2]
[422803668,1779423961000,-200.0,0.00010699,2]
[422803672,1779423972000,-200.0,0.000107,2]
[422803673,1779423973000,-200.0,0.000107,2]
[422803674,1779423973000,-200.0,0.000107,2]
[422803676,1779423974000,-200.0,0.000107,2]
[422803675,1779423974000,-200.0,0.000107,2]
[422803679,1779423975000,-200.0,0.000107,2]
[422803678,1779423975000,-200.0,0.000107,2]
[422803677,1779423975000,-200.0,0.000107,2]
[422803682,1779423976000,-200.0,0.000107,2]
[422803681,1779423976000,-200.0,0.000107,2]
[422803680,1779423976000,-200.0,0.000107,2]
[422803684,1779423977000,-200.0,0.000107,2]
[422803683,1779423977000,-200.0,0.000107,2]
[422803686,1779423979000,-200.0,0.000107,2]
[422803685,1779423979000,-200.0,0.000107,2]
[422803687,1779423980000,-200.0,0.000107,2]
[422803692,1779424149000,-8700.0,0.0001069,2]
[422803691,1779424149000,-300.0,0.00010689,2]
[422803690,1779424149000,-500.0,0.00010426,2]
[422803689,1779424149000,-500.0,0.00010152,2]
[422803695,1779424150000,-8368.4218631,0.0001069,2]
[422803694,1779424150000,-1631.5781369,0.0001069,2]
[422803693,1779424150000,-10000.0,0.0001069,2]
[422803697,1779424151000,-10000.0,0.0001069,2]
[422803696,1779424151000,-10000.0,0.0001069,2]
[422803698,1779424152000,-10000.0,0.0001069,2]
[422803700,1779424153000,-10000.0,0.0001069,2]
[422803701,1779424155000,-10000.0,0.0001069,2]
[422803714,1779424158000,-3673.9237757,0.0001069,2]
[422803715,1779424158000,-6326.0762243,0.0001069,2]
[422803719,1779424159000,-8891.762355,0.0001069,2]
[422803770,1779424231000,-1013.18,0.00011323,2]
[422803771,1779424231000,-303.98,0.0001134,2]
[422803769,1779424231000,-168.22,0.00011283,2]
[422803772,1779424231000,-237.0,0.00011341,2]
[422803768,1779424231000,-500.0,0.00011283,3]
[422803767,1779424231000,-185.87,0.00011276,2]
[422803766,1779424231000,-631.27,0.00011246,2]
[422803765,1779424231000,-272.29,0.00011242,2]
[422803775,1779424231000,-272.29,0.00011557,2]
[422803773,1779424231000,-237.0,0.00011448,2]
[422803762,1779424231000,-15695.03,0.00011229,2]
[422803763,1779424231000,-237.0,0.00011234,2]
[422803754,1779424231000,-170.49062066,0.000107,2]
[422803761,1779424231000,-500.0,0.00011201,2]
[422803757,1779424231000,-237.0,0.00010913,2]
[422803755,1779424231000,-360.48876971,0.00010753,2]
[422803753,1779424231000,-16256.43753007,0.000107,2]
[422803758,1779424231000,-272.29,0.00010928,2]
[422803756,1779424231000,-237.0,0.00010806,2]
[422803760,1779424231000,-237.0,0.00011127,2]
[422803752,1779424231000,-182.0,0.00010699,2]
[422803749,1779424231000,-1200.0,0.00010699,2]
[422803751,1779424231000,-199.02073195,0.00010699,2]
[422803748,1779424231000,-463.0,0.00010699,2]
[422803750,1779424231000,-100.97926805,0.00010699,2]
[422803759,1779424231000,-237.0,0.0001102,2]
[422803774,1779424231000,-237.0,0.00011555,2]
[422803764,1779424231000,-200.0,0.00011235,2]
[422803776,1779424231000,-150.0,0.00011651,2]
[422803777,1779424231000,-237.0,0.00011662,2]
[422803806,1779424231000,-196.73,0.00012957,2]
[422803805,1779424231000,-2351.0,0.00012946,2]
[422803800,1779424231000,-1434.13,0.0001288,2]
[422803802,1779424231000,-500.0,0.00012928,2]
[422803799,1779424231000,-4170.9985,0.00012846,2]
[422803798,1779424231000,-152.0,0.00012799,7]
[422803793,1779424231000,-12757.89,0.00012638,2]
[422803795,1779424231000,-500.0,0.00012685,2]
[422803796,1779424231000,-255.0,0.00012723,2]
[422803792,1779424231000,-500.0,0.00012521,2]
[422803791,1779424231000,-500.0,0.00012301,2]
[422803790,1779424231000,-508.14,0.00012234,2]
[422803797,1779424231000,-1383.07,0.00012765,2]
[422803788,1779424231000,-5042.43,0.0001216,2]
[422803782,1779424231000,-237.0,0.00011769,2]
[422803794,1779424231000,-631.27,0.00012652,2]
[422803779,1779424231000,-300.0,0.00011761,2]
[422803780,1779424231000,-250.0,0.00011769,2]
[422803784,1779424231000,-272.29,0.00011871,2]
[422803778,1779424231000,-241.56,0.00011678,2]
[422803781,1779424231000,-1680.0,0.00011769,2]
[422803785,1779424231000,-20331.5781369,0.00012123,2]
[422803786,1779424231000,-62042.3456388,0.00012123,2]
[422803787,1779424231000,-150.0,0.00012132,2]
[422803789,1779424231000,-272.29,0.00012185,2]
[422803783,1779424231000,-250.0,0.0001177,2]
[422803852,1779424232000,-673.69381996,0.00013399,2]
[422803848,1779424232000,-673.69381996,0.00013399,2]
[422803843,1779424232000,-715.79474819,0.00013399,2]
[422803845,1779424232000,-673.69381996,0.00013399,2]
[422803847,1779424232000,-673.69381996,0.00013399,2]
[422803839,1779424232000,-196.72050636,0.00013399,2]
[422803851,1779424232000,-673.69381996,0.00013399,2]
[422803842,1779424232000,-300.0,0.00013399,2]
[422803841,1779424232000,-160.19683292,0.00013399,2]
[422803840,1779424232000,-439.0576124,0.00013399,2]
[422803849,1779424232000,-673.69381996,0.00013399,2]
[422803844,1779424232000,-673.69381996,0.00013399,2]
[422803846,1779424232000,-673.69381996,0.00013399,2]
[422803865,1779424232000,-673.69381996,0.00013399,2]
[422803853,1779424232000,-673.69381996,0.00013399,2]
[422803855,1779424232000,-673.69381996,0.00013399,2]
[422803854,1779424232000,-673.69381996,0.00013399,2]
[422803857,1779424232000,-673.69381996,0.00013399,2]
[422803861,1779424232000,-673.69381996,0.00013399,2]
[422803859,1779424232000,-673.69381996,0.00013399,2]
[422803862,1779424232000,-673.69381996,0.00013399,2]